fUST/lending_fUST_20251012
["ID","MTS","AMOUNT","RATE_DAILY","PERIOD"]
[390966346,1760237438667,-151.85010789,0.00022373,2]
[390966347,1760237438676,-500.0,0.00022373,2]
[390966348,1760237438685,-500.0,0.00022373,2]
[390966349,1760237438695,-209.56308363,0.00022517,2]
[390966350,1760237438704,-1437.02381772,0.00022885,2]
[390966351,1760237438713,-1000.0,0.00022921,2]
[390966352,1760237438723,-1000.0,0.00022921,2]
[390966353,1760237438734,-1000.0,0.00022921,2]
[390966354,1760237438746,-166.56543061,0.00023004,5]
[390966355,1760237438757,-176.72792493,0.00023004,5]
[390966356,1760237438767,-1437.02381772,0.00023029,2]
[390966357,1760237438776,-236.89739888,0.00023117,2]
[390966358,1760237438786,-1000.0,0.00023305,2]
[390966359,1760237438795,-504.78424507,0.00023332,2]
[390966360,1760237438805,-1500.0,0.00023468,2]
[390966361,1760237438815,-512.99096655,0.00023468,2]
[390966362,1760237438825,-1500.0,0.00023468,2]
[390966363,1760237438834,-1437.02381772,0.00023493,2]
[390966364,1760237438843,-1437.02381772,0.00023692,2]
[390966365,1760237438853,-264.23171414,0.00023717,2]
[390966366,1760237438862,-1225.74150596,0.00023979,2]
[390966367,1760237438872,-195.72830151,0.00023989,2]
[390966368,1760237438882,-500.0,0.00023989,2]
[390966369,1760237438893,-437.45120617,0.00023989,2]
[390966370,1760237438903,-500.0,0.00023989,2]
[390966371,1760237438913,-500.0,0.00023989,2]
[390966372,1760237438923,-500.0,0.00023989,2]
[390966373,1760237438934,-500.0,0.00023989,2]
[390966374,1760237438943,-500.0,0.00023989,2]
[390966375,1760237438952,-500.0,0.00023989,2]
[390966376,1760237438969,-500.0,0.00023989,2]
[390966377,1760237438983,-500.0,0.00023989,2]
[390966378,1760237438994,-500.0,0.00023989,2]
[390966379,1760237439004,-500.0,0.00023989,2]
[390966380,1760237439014,-500.0,0.00023989,2]
[390966381,1760237439024,-500.0,0.00023989,2]
[390966382,1760237439035,-500.0,0.00023989,2]
[390966383,1760237439044,-500.0,0.00023989,2]
[390966384,1760237439053,-500.0,0.00023989,2]
[390966385,1760237439063,-500.0,0.00023989,2]
[390966386,1760237439074,-500.0,0.00023989,2]
[390966387,1760237439083,-500.0,0.00023989,2]
[390966388,1760237439093,-500.0,0.00023989,2]
[390966389,1760237439102,-500.0,0.00023989,2]
[390966390,1760237439112,-500.0,0.00023989,2]
[390966391,1760237439121,-500.0,0.00023989,2]
[390966392,1760237439131,-500.0,0.00023989,2]
[390966393,1760237439143,-500.0,0.00023989,2]
[390966394,1760237439154,-500.0,0.00023989,2]
[390966395,1760237439164,-500.0,0.00023989,2]
[390966396,1760237439173,-500.0,0.00023989,2]
[390966397,1760237439183,-500.0,0.00023989,2]
[390966398,1760237439192,-500.0,0.00023989,2]
[390966399,1760237439202,-500.0,0.00023989,2]
[390966400,1760237439212,-569.44490266,0.00023989,2]
[390966401,1760237439223,-500.0,0.00023989,2]
[390966402,1760237439233,-500.0,0.00023989,2]
[390966403,1760237439247,-500.0,0.00023989,2]
[390966404,1760237439258,-500.0,0.00023989,2]
[390966405,1760237439269,-500.0,0.00023989,2]
[390966406,1760237439279,-1042.63,0.0002399,3]
[390966407,1760237439289,-521.31,0.0002399,3]
[390966408,1760237439298,-260.66,0.0002399,3]
[390966409,1760237439307,-781.99,0.0002399,3]
[390966410,1760237439318,-2727.4,0.0002399,10]
[390966411,1760237439328,-5200.98,0.0002399,10]
[390966412,1760237439338,-283.7496646,0.00023999,2]
[390966413,1760237439347,-596335.49076667,0.00024,2]
[390966414,1760237439357,-24999.99,0.00024,2]
[390966415,1760237439367,-25000.0,0.00024,2]
[390966416,1760237439378,-2000.0,0.00024016,2]
[390966417,1760237439390,-2000.0,0.00024016,2]
[390966418,1760237439407,-1437.02381772,0.00024048,2]
[390966419,1760237439417,-879.0,0.0002408,2]
[390966420,1760237439428,-25000.0,0.0002415,2]
[390966421,1760237439437,-1680.0,0.00024274,2]
[390966422,1760237439446,-420.0,0.00024274,2]
[390966423,1760237439456,-25000.0,0.000243,2]
[390966424,1760237439466,-879.0,0.00024315,2]
[390966425,1760237439475,-291.56602939,0.00024317,2]
[390966426,1760237439484,-1437.02381772,0.00024379,2]
[390966427,1760237439495,-1680.0,0.00024386,2]
[390966428,1760237439504,-25000.0,0.0002445,2]
[390966429,1760237439515,-1225.74150594,0.00024535,2]
[390966430,1760237439528,-2500.0,0.00024564,2]
[390966431,1760237439541,-1435.44715255,0.00024564,2]
[390966432,1760237439552,-879.0,0.00024575,2]
[390966433,1760237439563,-720.0,0.00024584,20]
[390966434,1760237439575,-25000.0,0.000246,2]
[390966435,1760237439585,-1437.02381772,0.00024635,2]
[390966436,1760237439597,-25000.0,0.0002475,2]
[390966437,1760237439608,-1437.02381778,0.00024762,2]
[390966438,1760237439618,-500.0,0.00024773,2]
[390966439,1760237439627,-500.0,0.00024773,2]
[390966440,1760237439637,-500.0,0.00024773,2]
[390966441,1760237439647,-500.0,0.00024773,2]
[390966442,1760237439658,-502.51841808,0.00024773,2]
[390966443,1760237439669,-500.0,0.00024773,2]
[390966444,1760237439680,-1161.4643498,0.00024778,2]
[390966445,1760237439691,-266.62,0.0002478,8]
[390966446,1760237439701,-160.0,0.00024789,2]
[390966447,1760237439711,-1253.78269629,0.0002479,3]
[390966448,1760237439723,-1000.0,0.000248,5]
[390966449,1760237439734,-716067.08642248,0.000248,2]
[390966450,1760237439747,-370000.0,0.0002489,2]
[390966451,1760237439757,-439126.353103,0.000249,2]
[390966452,1760237439768,-151.0,0.000249,7]
[390966453,1760237439779,-151.465189,0.000249,7]
[390966454,1760237439790,-509.38404,0.000249,7]
[390966455,1760237439800,-151.0,0.000249,7]
[390966456,1760237439811,-509.38404,0.000249,7]
[390966457,1760237439822,-151.0,0.000249,7]
[390966458,1760237439833,-509.38404,0.000249,7]
[390966459,1760237439844,-151.0,0.000249,7]
[390966460,1760237439855,-509.38404,0.000249,7]
[390966461,1760237439867,-151.0,0.000249,7]
[390966462,1760237439878,-152.117073,0.000249,7]
[390966463,1760237439888,-151.0,0.000249,7]
[390966464,1760237439899,-151.0,0.000249,7]
[390966465,1760237439909,-151.0,0.000249,7]
[390966466,1760237439922,-555.894207,0.000249,7]
[390966467,1760237439933,-555.894207,0.000249,7]
[390966468,1760237439944,-555.894207,0.000249,7]
[390966469,1760237439954,-555.894207,0.000249,7]
[390966470,1760237439965,-151.0,0.000249,7]
[390966471,1760237439975,-151.0,0.000249,7]
[390966472,1760237439986,-25000.0,0.000249,2]
[390966474,1760237440000,-151.0,0.000249,7]
[390966476,1760237440011,-318.90034465,0.00024917,2]
[390966478,1760237440021,-160.0,0.0002496,2]
[390966480,1760237440031,-500.0,0.00024973,2]
[390966482,1760237440042,-500.0,0.00024973,2]
[390966484,1760237440051,-500.0,0.00024973,2]
[390966486,1760237440061,-501.47230702,0.00024973,2]
[390966488,1760237440071,-502.17963451,0.00024973,2]
[390966490,1760237440080,-503.14721363,0.00024973,8]
[390966492,1760237440091,-1567.9519887,0.00024974,2]
[390966494,1760237440102,-879.0,0.00024976,2]
[390966497,1760237440113,-298.14195131,0.00025,2]
[390966499,1760237440123,-417.15472785,0.00025,2]
[390966501,1760237440136,-297.15357332,0.00025,2]
[390966503,1760237440147,-776.0439504,0.00025,2]
[390966505,1760237440158,-177.73528589,0.00025,2]
[390966507,1760237440169,-616.43635066,0.00025,2]
[390966509,1760237440179,-1871.92468247,0.00025,2]
[390966511,1760237440191,-160.35286812,0.00025,2]
[390966513,1760237440202,-473.8695496,0.00025,2]
[390966515,1760237440214,-1343.35228811,0.00025,2]
[390966518,1760237440225,-160.0,0.00025,2]
[390966520,1760237440236,-1035.74,0.00025014,120]
[390966522,1760237440251,-1242.0,0.00025046,2]
[390966524,1760237440262,-11157.33,0.0002505,2]
[390966526,1760237440273,-1225.74150594,0.0002509,2]
[390966529,1760237440286,-513.11886281,0.00025112,2]
[390966531,1760237440297,-879.0,0.00025121,2]
[390966533,1760237440310,-1242.0,0.00025126,2]
[390966535,1760237440321,-1242.0,0.00025198,2]
[390966537,1760237440331,-297.15357332,0.000252,2]
[390966539,1760237440341,-776.0439504,0.000252,2]
[390966541,1760237440350,-177.73528589,0.000252,2]
[390966544,1760237440360,-616.43635066,0.000252,2]
[390966546,1760237440370,-1871.92468247,0.000252,2]
[390966548,1760237440379,-473.8695496,0.000252,2]
[390966550,1760237440389,-1343.35228811,0.000252,2]
[390966552,1760237440399,-609.42,0.00025205,7]
[390966554,1760237440409,-879.0,0.00025252,2]
[390966556,1760237440418,-1242.0,0.00025306,2]
[390966558,1760237440429,-1005.15928884,0.00025321,2]
[390966560,1760237440440,-1001.19283632,0.00025321,2]
[390966562,1760237440451,-1000.0,0.00025321,2]
[390966564,1760237440462,-506.85560792,0.00025321,2]
[390966567,1760237440474,-1000.0,0.00025321,2]
[390966569,1760237440485,-260.0,0.00025337,2]
[390966571,1760237440497,-2085.26,0.0002536,3]
[390966572,1760237440507,-1042.62,0.0002536,3]
[390966573,1760237440517,-521.32,0.0002536,3]
[390966574,1760237440527,-1242.0,0.00025414,2]
[390966576,1760237440538,-609.42,0.00025479,8]
[390966577,1760237440549,-1242.0,0.0002548,2]
[390966578,1760237440559,-1242.0,0.00025489,2]
[390966579,1760237440569,-1242.0,0.00025489,2]
[390966580,1760237440581,-297.15357332,0.000255,2]
[390966581,1760237440592,-776.0439504,0.000255,2]
[390966582,1760237440602,-177.73528589,0.000255,2]
[390966583,1760237440612,-616.43635066,0.000255,2]
[390966584,1760237440623,-1871.92468247,0.000255,2]
[390966585,1760237440633,-1343.35228811,0.000255,2]
[390966586,1760237440643,-473.8695496,0.000255,2]
[390966587,1760237440653,-346.2346599,0.00025517,2]
[390966588,1760237440663,-867.88781146,0.00025521,2]
[390966589,1760237440673,-1001.32292699,0.00025521,2]
[390966590,1760237440683,-1000.0,0.00025521,2]
[390966591,1760237440693,-879.0,0.00025576,2]
[390966592,1760237440703,-1225.74150594,0.00025646,2]
[390966593,1760237440714,-1242.0,0.00025694,2]
[390966594,1760237440724,-297.15357332,0.000257,2]
[390966595,1760237440734,-776.0439504,0.000257,2]
[390966596,1760237440746,-616.43635066,0.000257,2]
[390966597,1760237440756,-1871.92468247,0.000257,2]
[390966598,1760237440766,-1343.35228811,0.000257,2]
[390966599,1760237440777,-473.8695496,0.000257,2]
[390966600,1760237440787,-879.0,0.00025709,2]
[390966601,1760237440799,-1242.0,0.00025716,2]
[390966602,1760237440810,-1242.0,0.00025746,2]
[390966603,1760237440821,-609.42,0.00025753,9]
[390966604,1760237440831,-1500.0,0.00025868,2]
[390966605,1760237440841,-1500.0,0.00025868,2]
[390966606,1760237440851,-360.0,0.00025885,2]
[390966607,1760237440861,-879.0,0.00025887,2]
[390966609,1760237440871,-879.0,0.00025961,2]
[390966610,1760237440883,-425.78937,0.00026,60]
[390966611,1760237440893,-6000.00000105,0.00026,30]
[390966612,1760237440903,-297.15357332,0.00026,2]
[390966613,1760237440912,-776.0439504,0.00026,2]
[390966614,1760237440922,-616.43635066,0.00026,2]
[390966615,1760237440932,-1871.92468247,0.00026,2]
[390966616,1760237440942,-1343.35228811,0.00026,2]
[390966617,1760237440952,-473.8695496,0.00026,2]
[390966618,1760237440962,-609.42,0.00026027,10]
[390966619,1760237440972,-12983.35,0.00026027,2]
[390966620,1760237440982,-1501.37887223,0.00026068,2]
[390966621,1760237440995,-373.56897516,0.00026117,2]
[390966622,1760237441005,-1242.0,0.0002615,7]
[390966623,1760237441015,-1225.74150594,0.00026201,2]
[390966624,1760237441026,-615.46413299,0.00026241,2]
[390966625,1760237441036,-1242.0,0.00026248,2]
[390966626,1760237441047,-1242.0,0.00026288,2]
[390966627,1760237441058,-609.42,0.00026301,11]
[390966628,1760237441068,-576.0,0.00026368,2]
[390966629,1760237441079,-587.0,0.00026368,2]
[390966630,1760237441089,-1009.95864256,0.00026416,2]
[390966631,1760237441099,-2000.0,0.00026416,2]
[390966632,1760237441109,-460.0,0.00026433,2]
[390966633,1760237441119,-1242.0,0.0002649,2]
[390966634,1760237441129,-609.42,0.00026575,12]
[390966635,1760237441141,-671.0,0.00026614,2]
[390966636,1760237441153,-912.659149,0.00026676,2]
[390966637,1760237441163,-400.90329041,0.00026717,2]
[390966638,1760237441172,-2973.19782987,0.00026744,2]
[390966639,1760237441183,-176.72792493,0.00026753,5]
[390966640,1760237441193,-609.42,0.00026849,13]
[390966641,1760237441203,-179.58695001,0.00026852,2]
[390966642,1760237441212,-159.347131,0.00026955,3]
[390966643,1760237441224,-2500.0,0.00026964,2]
[390966644,1760237441234,-560.0,0.00026981,2]
[390966645,1760237441246,-203.51087,0.00027,120]
[390966646,1760237441257,-864.0,0.00027043,30]
[390966647,1760237441267,-609.42,0.00027123,14]
[390966648,1760237441277,-1186.52,0.00027123,10]
[390966649,1760237441287,-1186.52,0.00027123,10]
[390966650,1760237441297,-1186.52,0.00027123,10]
[390966651,1760237441307,-1186.52,0.00027123,10]
[390966652,1760237441318,-1186.52,0.00027123,10]
[390966653,1760237441492,-1186.52,0.00027123,10]
[390966654,1760237441502,-1186.52,0.00027123,10]
[390966655,1760237441512,-1186.52,0.00027123,10]
[390966656,1760237441521,-1186.52,0.00027123,10]
[390966657,1760237441530,-1186.52,0.00027123,10]
[390966658,1760237441539,-1186.52,0.00027123,10]
[390966659,1760237441548,-1186.52,0.00027123,10]
[390966660,1760237441558,-1186.52,0.00027123,10]
[390966661,1760237441567,-1186.52,0.00027123,10]
[390966662,1760237441577,-1186.52,0.00027123,10]
[390966663,1760237441586,-1186.52,0.00027123,10]
[390966664,1760237441595,-1186.52,0.00027123,10]
[390966665,1760237441604,-1186.52,0.00027123,10]
[390966666,1760237441613,-1186.52,0.00027123,10]
[390966667,1760237441623,-1186.52,0.00027123,10]
[390966668,1760237441633,-1186.52,0.00027123,10]
[390966669,1760237441642,-1186.52,0.00027123,10]
[390966670,1760237441651,-1186.52,0.00027123,10]
[390966671,1760237441661,-1186.60270517,0.00027123,10]
[390966672,1760237441670,-161.56829326,0.00027173,2]
[390966673,1760237441679,-1567.9519887,0.000272,10]
[390966674,1760237441689,-428.23760567,0.00027317,2]
[390966675,1760237441698,-609.42,0.00027397,15]
[390966676,1760237441707,-1000.0,0.00027397,30]
[390966677,1760237441717,-1000.0,0.00027397,30]
[390966678,1760237441726,-1000.0,0.00027397,30]
[390966679,1760237441735,-1000.0,0.00027397,30]
[390966680,1760237441745,-1000.0,0.00027397,30]
[390966681,1760237441755,-1127.84693006,0.00027397,30]
[390966682,1760237441764,-3844.46561771,0.00027397,4]
[390966704,1760237443270,-4334.15,0.0002399,10]
[390966705,1760237443279,-169.808266,0.000249,7]
[390966706,1760237443288,-151.0,0.000249,7]
[390966707,1760237443298,-169.808266,0.000249,7]
[390966708,1760237443307,-151.0,0.000249,7]
[390966709,1760237443316,-169.808266,0.000249,7]
[390966710,1760237443326,-186.692511,0.000249,7]
[390966712,1760237443336,-9138.88438229,0.00027397,4]
[390966713,1760237443345,-150.0,0.00027397,5]
[390966714,1760237443354,-3030.97,0.000274,2]
[390966715,1760237443363,-7726.96,0.000274,2]
[390966716,1760237443372,-1567.9519887,0.000274,30]
[390966717,1760237443382,-1001.15181462,0.000275,10]
[390966718,1760237443391,-3000.0,0.00027512,5]
[390966719,1760237443400,-155.57,0.00027519,15]
[390966720,1760237443409,-660.0,0.00027529,2]
[390966721,1760237443418,-159.347131,0.00027536,2]
[390966722,1760237443427,-176.72792493,0.00027582,5]
[390966723,1760237443436,-155.57,0.00027619,15]
[390966724,1760237443445,-609.42,0.00027671,16]
[390966725,1760237443455,-155.57,0.00027719,15]
[390966726,1760237443464,-56.00752151,0.00027766,60]
[390966733,1760237447474,150.0,0.00019082,2]
[390966734,1760237447884,150.0,0.00019991,2]
[390966735,1760237448294,150.0,0.000209,2]
[390966736,1760237473277,-150.0,0.00021808,2]
[390966737,1760237473300,-150.0100899,0.00021808,2]
[390966738,1760237483557,7995.76,0.00030222,60]
[390966739,1760237503324,-30.36076357,0.00021808,2]
[390966740,1760237503346,-222.14361385,0.00021808,2]
[390966741,1760237506793,-300.0,0.00021808,2]
[390966742,1760237508126,-185.46098274,0.00021808,2]
[390966743,1760237510571,-242.25198149,0.00021808,2]
[390966744,1760237513052,-287.78780809,0.00021808,2]
[390966745,1760237517178,-322.90791025,0.00021808,2]
[390966746,1760237806699,0.01813013,0.00023288,30]
[390966747,1760238114920,5812.0,0.00021,2]
[390966748,1760238115930,-1200.0,0.00021806,2]
[390966749,1760238115959,-214.12033392,0.00021806,2]
[390966750,1760238115988,-1200.0,0.00021807,2]
[390966751,1760238116017,-300.0,0.00021807,2]
[390966752,1760238119943,-8190.01,0.00021808,2]
[390966753,1760238120059,-10000.01,0.00021808,2]
[390966754,1760238123106,-1450.39646358,0.00021808,2]
[390966755,1760238312976,666.0,0.00021352,2]
[390966756,1760238373684,234.819038,0.00021344,2]
[390966757,1760238467812,821.393234,0.00013699,2]
[390966758,1760238468015,821.393234,0.00020187,2]
[390966806,1760238632496,-1056.0,0.00021916,2]
[390966808,1760238632510,-300.0,0.00021916,2]
[390966810,1760238632519,-1200.0,0.00021916,2]
[390966811,1760238632530,-400.0,0.00021917,2]
[390966814,1760238632539,-500.0,0.00021917,2]
[390966816,1760238632549,-169.94,0.00021917,2]
[390966818,1760238632558,-500.0,0.00021917,2]
[390966819,1760238632569,-500.0,0.00021917,2]
[390966821,1760238632578,-500.0,0.00021917,2]
[390966824,1760238632587,-500.0,0.00021917,2]
[390966825,1760238632596,-500.0,0.00021917,2]
[390966828,1760238632606,-500.0,0.00021917,2]
[390966830,1760238632615,-513.36129471,0.00021917,2]
[390966834,1760238632625,-500.0,0.00021917,2]
[390966837,1760238632634,-506.70649016,0.00021917,2]
[390966840,1760238632643,-507.62013432,0.00021917,2]
[390966842,1760238632652,-503.26272175,0.00021917,2]
[390966844,1760238632662,-501.84111804,0.00021917,2]
[390966845,1760238632671,-156.25110511,0.00021917,2]
[390966846,1760238632685,-500.0,0.00021917,2]
[390966847,1760238632695,-504.18161369,0.00021917,2]
[390966848,1760238632704,-504.66565771,0.00021917,2]
[390966849,1760238632713,-500.0,0.00021917,2]
[390966850,1760238632722,-500.0,0.00021917,2]
[390966851,1760238632732,-500.0,0.00021917,2]
[390966852,1760238632741,-500.0,0.00021917,2]
[390966853,1760238632750,-498.28286323,0.00021917,2]
[390966854,1760238632759,-505.32899932,0.00021917,2]
[390966855,1760238632768,-501.35374469,0.00021917,2]
[390966856,1760238632778,-500.71369986,0.00021917,2]
[390966857,1760238632787,-500.0,0.00021917,2]
[390966858,1760238632797,-505.74786077,0.00021917,2]
[390966859,1760238632806,-500.0,0.00021917,2]
[390966860,1760238632816,-500.0,0.00021917,2]
[390966861,1760238632828,-590.34,0.00021917,2]
[390966862,1760238632837,-500.0,0.00021917,2]
[390966863,1760238632847,-504.46299582,0.00021917,2]
[390966864,1760238632857,-500.0,0.00021917,2]
[390966865,1760238632867,-504.05134616,0.00021917,2]
[390966866,1760238632877,-500.0,0.00021917,2]
[390966867,1760238632887,-580.14,0.00021917,2]
[390966868,1760238632897,-500.0,0.00021917,2]
[390966869,1760238632906,-406.92,0.00021917,2]
[390966871,1760238632916,-500.0,0.00021917,2]
[390966872,1760238632929,-500.0,0.00021917,2]
[390966873,1760238632938,-500.0,0.00021917,2]
[390966874,1760238632947,-500.0,0.00021917,2]
[390966876,1760238632957,-500.0,0.00021917,2]
[390966878,1760238632967,-500.0,0.00021917,2]
[390966880,1760238632976,-500.0,0.00021917,2]
[390966882,1760238632986,-500.0,0.00021917,2]
[390966884,1760238632996,-500.0,0.00021917,2]
[390966886,1760238633005,-180.47,0.00021917,2]
[390966888,1760238633015,-502.37268043,0.00021917,2]
[390966890,1760238633024,-500.0,0.00021917,2]
[390966892,1760238633034,-500.0,0.00021917,2]
[390966894,1760238633044,-500.0,0.00021917,2]
[390966896,1760238633054,-502.51814734,0.00021917,2]
[390966898,1760238633063,-3611.79,0.00022337,10]
[390966900,1760238633074,-500.0,0.00022346,2]
[390966902,1760238633083,-500.0,0.00022346,2]
[390966904,1760238633092,-500.0,0.00022346,2]
[390966906,1760238633102,-500.0,0.00022346,2]
[390966908,1760238633111,-504.22006794,0.00022346,2]
[390966910,1760238633121,-500.0,0.00022346,2]
[390966912,1760238633131,-500.0,0.00022346,2]
[390966914,1760238633141,-500.0,0.00022346,2]
[390966916,1760238633151,-500.0,0.00022346,2]
[390966918,1760238633160,-500.0,0.00022346,2]
[390966920,1760238633170,-500.0,0.00022346,2]
[390966922,1760238633184,-500.0,0.00022346,2]
[390966924,1760238633193,-500.0,0.00022346,2]
[390966926,1760238633203,-500.0,0.00022346,2]
[390966928,1760238633213,-500.0,0.00022346,2]
[390966930,1760238633223,-503.97546992,0.00022346,2]
[390966932,1760238633233,-636.56854101,0.00022346,2]
[390966934,1760238633243,-500.0,0.00022346,2]
[390966936,1760238633252,-500.0,0.00022346,2]
[390966938,1760238633262,-500.0,0.00022346,2]
[390966940,1760238633271,-500.0,0.00022346,2]
[390966942,1760238633280,-500.0,0.00022346,2]
[390966943,1760238633290,-500.0,0.00022346,2]
[390966944,1760238633299,-500.0,0.00022346,2]
[390966945,1760238633309,-500.0,0.00022346,2]
[390966946,1760238633318,-509.42932232,0.00022346,2]
[390966948,1760238633328,-500.0,0.00022346,2]
[390966950,1760238633337,-502.25512245,0.00022346,2]
[390966952,1760238633347,-500.0,0.00022346,2]
[390966954,1760238633357,-505.09101722,0.00022346,2]
[390966956,1760238633366,-501.14538121,0.00022346,2]
[390966958,1760238633376,-502.12855619,0.00022346,2]
[390966960,1760238633386,-500.9857587,0.00022346,2]
[390966962,1760238633395,-501.37393964,0.00022346,2]
[390966964,1760238633405,-503.69980182,0.00022346,2]
[390966966,1760238633414,-501.29214937,0.00022346,2]
[390966968,1760238633424,-500.0,0.00022346,2]
[390966970,1760238633439,-504.83673599,0.00022346,2]
[390966973,1760238633449,-500.0,0.00022346,2]
[390966975,1760238633459,-503.05799804,0.00022346,2]
[390966977,1760238633469,-500.0,0.00022346,2]
[390966979,1760238633481,-503.77926267,0.00022346,2]
[390966980,1760238633491,-500.0,0.00022346,2]
[390966982,1760238633505,-290.55556519,0.00022346,2]
[390966984,1760238633516,-234.98147767,0.00022346,2]
[390966986,1760238633527,-500.0,0.00022346,2]
[390966988,1760238633536,-500.0,0.00022346,2]
[390966990,1760238633546,-502.5397836,0.00022346,2]
[390966992,1760238633555,-500.0,0.00022346,2]
[390966994,1760238633565,-500.0,0.00022346,2]
[390966996,1760238633577,-500.0,0.00022346,2]
[390966998,1760238633587,-500.0,0.00022346,2]
[390967000,1760238633596,-225.54,0.00022346,2]
[390967002,1760238633606,-500.0,0.00022346,2]
[390967004,1760238633616,-500.0,0.00022346,2]
[390967006,1760238633627,-504.28137146,0.00022346,2]
[390967008,1760238633636,-500.0,0.00022346,2]
[390967010,1760238633647,-500.0,0.00022347,2]
[390967012,1760238633660,-498.0,0.00022347,2]
[390967014,1760238633670,-500.0,0.00022347,2]
[390967015,1760238633684,-502.71835885,0.00022347,2]
[390967017,1760238633693,-502.70306606,0.00022347,2]
[390967019,1760238633703,-503.78644034,0.00022347,2]
[390967021,1760238633712,-500.0,0.00022347,2]
[390967023,1760238633721,-500.0,0.00022347,2]
[390967025,1760238633731,-500.0,0.00022373,2]
[390967027,1760238633741,-500.0,0.00022373,2]
[390967029,1760238633750,-500.0,0.00022373,2]
[390967032,1760238633760,-513.11886281,0.00022373,2]
[390967033,1760238633770,-500.0,0.00022373,2]
[390967034,1760238633780,-246.238384,0.00022406,2]
[390967036,1760238633790,-847.162194,0.00022752,2]
[390967038,1760238633799,-300.0,0.00022792,20]
[390967040,1760238633808,-300.0,0.00022792,20]
[390967042,1760238633817,-300.0,0.00022792,20]
[390967045,1760238633826,-300.0,0.00022792,20]
[390967047,1760238633835,-300.0,0.00022792,20]
[390967049,1760238633845,-300.0,0.00022792,20]
[390967051,1760238633854,-300.0,0.00022792,20]
[390967053,1760238633864,-300.0,0.00022792,20]
[390967055,1760238633873,-300.0,0.00022792,20]
[390967056,1760238633883,-300.0,0.00022792,20]
[390967058,1760238633892,-300.0,0.00022792,20]
[390967060,1760238633901,-300.0,0.00022792,20]
[390967062,1760238633911,-300.0,0.00022792,20]
[390967065,1760238633921,-300.0,0.00022792,20]
[390967066,1760238633934,-300.0,0.00022792,20]
[390967068,1760238633943,-600.0,0.00022792,20]
[390967070,1760238633952,-1000.0,0.00022921,2]
[390967072,1760238633961,-517.07929053,0.00022921,2]
[390967074,1760238633971,-1000.0,0.00022921,2]
[390967076,1760238633981,-500.0,0.00022973,2]
[390967078,1760238633991,-176.72792493,0.00022976,5]
[390967080,1760238634000,-608.2,0.0002298,3]
[390967081,1760238634009,-608.2,0.0002298,3]
[390967082,1760238634020,-1000.0,0.00022989,2]
[390967084,1760238634029,-57528.04141077,0.0002299,2]
[390967085,1760238634038,-278.35643409,0.00023006,2]
[390967086,1760238634047,-509.5923444,0.00023244,2]
[390967087,1760238634057,-500.0,0.00023244,2]
[390967088,1760238634067,-275.43508457,0.00023288,30]
[390967089,1760238634077,-160.0,0.000233,2]
[390967090,1760238634087,-1000.0,0.00023521,2]
[390967091,1760238634096,-310.47448418,0.00023606,2]
[390967092,1760238634106,-1000.0,0.00023792,2]
[390967093,1760238634115,-735.44490358,0.000238,2]
[390967094,1760238634125,-239.82520472,0.000238,2]
[390967095,1760238634135,-420.0,0.00023817,2]
[390967096,1760238634144,-260.0,0.00023848,2]
[390967097,1760238634154,-198.62476522,0.00023872,2]